[Event "*** Titled Tuesday Blitz"]
[Site "Chess.com"]
[Date "2020.05.12"]
[Round "9"]
[White "Alexander_Zubov"]
[Black "Biranidun"]
[Result "1-0"]
[WhiteElo "2844"]
[BlackElo "2696"]
[TimeControl "180+1"]
[EndTime "11:43:54 PDT"]
[Termination "Alexander_Zubov won by resignation"]

1. e4 {[%clk 0:03:00.9]} 1... c5 {[%clk 0:02:59.6]} 2. Nf3 {[%clk 0:03:00.5]}
2... d6 {[%clk 0:03:00.2]} 3. d4 {[%clk 0:02:58.8]} 3... cxd4 {[%clk 0:03:01.1]}
4. Nxd4 {[%clk 0:02:59.6]} 4... Nf6 {[%clk 0:03:01.8]} 5. f3 {[%clk 0:02:58.7]}
5... e5 {[%clk 0:02:58.5]} 6. Nb3 {[%clk 0:02:58.4]} 6... a5 {[%clk 0:02:48.7]}
7. Bb5+ {[%clk 0:02:50.6]} 7... Nc6 {[%clk 0:02:45.1]} 8. Nc3 {[%clk 0:02:48]}
8... Be7 {[%clk 0:02:45.4]} 9. Be3 {[%clk 0:02:46.3]} 9... O-O {[%clk
0:02:45.4]} 10. Qd2 {[%clk 0:02:33.8]} 10... Be6 {[%clk 0:02:45.1]} 11. O-O-O
{[%clk 0:02:33.1]} 11... Na7 {[%clk 0:02:42.9]} 12. Be2 {[%clk 0:02:26.4]} 12...
Nc8 {[%clk 0:02:25]} 13. a4 {[%clk 0:02:24.7]} 13... Nb6 {[%clk 0:02:21.5]} 14.
Kb1 {[%clk 0:02:17.2]} 14... Nc4 {[%clk 0:02:08.5]} 15. Bxc4 {[%clk 0:02:16.1]}
15... Bxc4 {[%clk 0:02:09.4]} 16. Bg5 {[%clk 0:02:11.8]} 16... Ra6 {[%clk
0:01:58]} 17. Bxf6 {[%clk 0:02:09.5]} 17... Bxf6 {[%clk 0:01:58.9]} 18. Nd5
{[%clk 0:02:06.9]} 18... Bg5 {[%clk 0:01:59]} 19. Qc3 {[%clk 0:02:03]} 19... b5
{[%clk 0:01:41.5]} 20. axb5 {[%clk 0:01:56]} 20... Bxb5 {[%clk 0:01:42.4]} 21.
Qc7 {[%clk 0:01:44]} 21... a4 {[%clk 0:01:32.4]} 22. Qxd8 {[%clk 0:01:40.8]}
22... Rxd8 {[%clk 0:01:33.3]} 23. Nc1 {[%clk 0:01:36.5]} 23... Rc8 {[%clk
0:01:29.2]} 24. Na2 {[%clk 0:01:25.4]} 24... Bc4 {[%clk 0:01:25.2]} 25. Nab4
{[%clk 0:01:20.4]} 25... Ra7 {[%clk 0:00:58.8]} 26. Nb6 {[%clk 0:01:17.5]} 26...
Rb8 {[%clk 0:00:54.4]} 27. Nxc4 {[%clk 0:00:49.5]} 27... Rxb4 {[%clk 0:00:54.4]}
28. Nxd6 {[%clk 0:00:50.1]} 28... g6 {[%clk 0:00:46.2]} 29. Ka2 {[%clk
0:00:45.6]} 29... Be7 {[%clk 0:00:43.9]} 30. c3 {[%clk 0:00:44.3]} 30... Rb8
{[%clk 0:00:39.7]} 31. Nc4 {[%clk 0:00:43.4]} 31... f6 {[%clk 0:00:39.4]} 32.
Rd5 {[%clk 0:00:37]} 32... Rc7 {[%clk 0:00:39.1]} 33. Nd2 {[%clk 0:00:35.2]}
33... Rcb7 {[%clk 0:00:38.8]} 34. Rb1 {[%clk 0:00:34.7]} 34... Kf7 {[%clk
0:00:33.5]} 35. Ra5 {[%clk 0:00:32.5]} 35... Rd7 {[%clk 0:00:33.3]} 36. Nc4
{[%clk 0:00:31.6]} 36... a3 {[%clk 0:00:16.1]} 37. b4 {[%clk 0:00:27.9]} 37...
Rc8 {[%clk 0:00:14.1]} 38. Nxa3 {[%clk 0:00:20.2]} 38... Rxc3 {[%clk 0:00:13.8]}
39. b5 {[%clk 0:00:19]} 39... Rd2+ {[%clk 0:00:13.6]} 40. Rb2 {[%clk 0:00:18.4]}
40... Rxb2+ {[%clk 0:00:03.2]} 41. Kxb2 {[%clk 0:00:17.9]} 41... Re3 {[%clk
0:00:02.9]} 42. b6 {[%clk 0:00:16.9]} 42... Re2+ {[%clk 0:00:02.3]} 43. Kb3
{[%clk 0:00:16.4]} 43... Rxg2 {[%clk 0:00:01.2]} 44. b7 {[%clk 0:00:13.1]} 44...
Bd6 {[%clk 0:00:01.2]} 45. Nc4 {[%clk 0:00:13]} 45... Bc7 {[%clk 0:00:01.8]} 46.
Rc5 {[%clk 0:00:12.9]} 46... Bb8 {[%clk 0:00:01.8]} 47. Rc8 {[%clk 0:00:12.5]}
47... Ba7 {[%clk 0:00:02.5]} 48. Ra8 {[%clk 0:00:11.3]} 48... Rg1 {[%clk
0:00:01.9]} 49. Rxa7 {[%clk 0:00:10.6]} 49... Rb1+ {[%clk 0:00:02.8]} 50. Nb2
{[%clk 0:00:10.4]} 1-0

[Event "*** Titled Tuesday Blitz"]
[Site "Chess.com"]
[Date "2020.05.12"]
[Round "9"]
[White "jonaszmb"]
[Black "MarcoRiehle"]
[Result "0-1"]
[WhiteElo "2503"]
[BlackElo "2627"]
[TimeControl "180+1"]
[EndTime "11:43:54 PDT"]
[Termination "MarcoRiehle won by resignation"]

1. e4 {[%clk 0:03:00.9]} 1... e5 {[%clk 0:02:59.4]} 2. Nf3 {[%clk 0:03:01.1]}
2... Nf6 {[%clk 0:02:59.1]} 3. d4 {[%clk 0:03:00.8]} 3... exd4 {[%clk
0:02:57.3]} 4. e5 {[%clk 0:03:00.9]} 4... Ne4 {[%clk 0:02:57.5]} 5. Qxd4 {[%clk
0:02:44]} 5... f5 {[%clk 0:02:56.8]} 6. Bc4 {[%clk 0:02:35.5]} 6... Bc5 {[%clk
0:02:55.4]} 7. Qd5 {[%clk 0:02:32.1]} 7... Qe7 {[%clk 0:02:48.8]} 8. O-O {[%clk
0:02:27.5]} 8... c6 {[%clk 0:02:45.1]} 9. Qd1 {[%clk 0:02:24.4]} 9... b5 {[%clk
0:02:38.2]} 10. Bb3 {[%clk 0:02:23]} 10... Na6 {[%clk 0:02:36.1]} 11. Nbd2
{[%clk 0:02:05.7]} 11... Nxd2 {[%clk 0:02:30.6]} 12. Bxd2 {[%clk 0:02:03.5]}
12... Bb7 {[%clk 0:02:30.3]} 13. Bg5 {[%clk 0:02:02]} 13... Qf8 {[%clk
0:02:25.3]} 14. e6 {[%clk 0:02:00.5]} 14... d5 {[%clk 0:02:20.9]} 15. Ne5 {[%clk
0:01:44.5]} 15... g6 {[%clk 0:02:10.6]} 16. Nd7 {[%clk 0:01:21.5]} 16... Qd6
{[%clk 0:02:01.3]} 17. Nf6+ {[%clk 0:01:21.2]} 17... Kf8 {[%clk 0:02:00.1]} 18.
Nd7+ {[%clk 0:01:16.9]} 18... Kg7 {[%clk 0:01:46.9]} 19. Bf6+ {[%clk 0:01:16.7]}
19... Kg8 {[%clk 0:01:47.3]} 20. Re1 {[%clk 0:01:09.1]} 20... Re8 {[%clk
0:01:40.7]} 21. Be5 {[%clk 0:01:04.9]} 21... Qxe6 {[%clk 0:01:34.8]} 22. Bxh8
{[%clk 0:00:38.8]} 22... Qxd7 {[%clk 0:01:31.5]} 23. Rxe8+ {[%clk 0:00:30.7]}
23... Qxe8 {[%clk 0:01:32.4]} 24. Bd4 {[%clk 0:00:30.8]} 24... Qe4 {[%clk
0:01:27.1]} 25. Bxc5 {[%clk 0:00:26.1]} 25... Nxc5 {[%clk 0:01:28]} 26. Qd2
{[%clk 0:00:26]} 26... Qe6 {[%clk 0:00:59.4]} 27. Re1 {[%clk 0:00:25.4]} 27...
Qf6 {[%clk 0:00:59.8]} 28. Qh6 {[%clk 0:00:18.9]} 28... Ne4 {[%clk 0:00:51.1]}
29. Qf4 {[%clk 0:00:14.2]} 29... Kg7 {[%clk 0:00:41.6]} 30. Qc7+ {[%clk
0:00:12.2]} 30... Qf7 {[%clk 0:00:42]} 31. Qe5+ {[%clk 0:00:10.6]} 31... Qf6
{[%clk 0:00:41.4]} 32. Qxf6+ {[%clk 0:00:07.9]} 32... Kxf6 {[%clk 0:00:41]} 33.
f3 {[%clk 0:00:08.8]} 33... Nd6 {[%clk 0:00:38.8]} 34. Kf2 {[%clk 0:00:09]}
34... c5 {[%clk 0:00:35.5]} 35. c3 {[%clk 0:00:09.5]} 35... a5 {[%clk
0:00:35.3]} 36. Rd1 {[%clk 0:00:09]} 36... Ke6 {[%clk 0:00:33.6]} 37. Re1+
{[%clk 0:00:09]} 37... Kf6 {[%clk 0:00:34]} 38. a4 {[%clk 0:00:08.2]} 38... b4
{[%clk 0:00:33.2]} 39. cxb4 {[%clk 0:00:08.1]} 39... axb4 {[%clk 0:00:33.3]} 40.
a5 {[%clk 0:00:08.5]} 40... c4 {[%clk 0:00:33.6]} 41. Ba4 {[%clk 0:00:08.8]}
41... d4 {[%clk 0:00:33.1]} 42. Rd1 {[%clk 0:00:06.7]} 42... Ke5 {[%clk
0:00:33.4]} 43. f4+ {[%clk 0:00:07.1]} 43... Kd5 {[%clk 0:00:31.5]} 44. g4
{[%clk 0:00:02]} 44... c3 {[%clk 0:00:30]} 45. gxf5 {[%clk 0:00:02]} 45... gxf5
{[%clk 0:00:29.5]} 46. bxc3 {[%clk 0:00:02.5]} 46... Ne4+ {[%clk 0:00:29.1]} 47.
Ke1 {[%clk 0:00:02.1]} 47... bxc3 {[%clk 0:00:24.3]} 48. Bb3+ {[%clk 0:00:02.4]}
48... Kc5 {[%clk 0:00:24.6]} 49. Bc2 {[%clk 0:00:03.3]} 49... Ba6 {[%clk
0:00:23.3]} 50. Bd3 {[%clk 0:00:03.1]} 50... Bxd3 {[%clk 0:00:23.2]} 51. Rxd3
{[%clk 0:00:04]} 51... c2 {[%clk 0:00:23.8]} 52. Rd1 {[%clk 0:00:01.8]} 52...
cxd1=Q+ {[%clk 0:00:23.2]} 53. Kxd1 {[%clk 0:00:02.7]} 53... Kb5 {[%clk
0:00:23.7]} 54. Ke2 {[%clk 0:00:03.4]} 54... Nc5 {[%clk 0:00:21.1]} 55. a6
{[%clk 0:00:01.8]} 55... Kxa6 {[%clk 0:00:21.1]} 0-1

[Event "*** Titled Tuesday Blitz"]
[Site "Chess.com"]
[Date "2020.05.12"]
[Round "9"]
[White "Love_craft"]
[Black "Chessmatus"]
[Result "1-0"]
[WhiteElo "2626"]
[BlackElo "2477"]
[TimeControl "180+1"]
[EndTime "11:43:56 PDT"]
[Termination "Love_craft won by resignation"]

1. Nf3 {[%clk 0:03:00.9]} 1... c5 {[%clk 0:02:57.8]} 2. e4 {[%clk 0:03:00.3]}
2... d6 {[%clk 0:02:57]} 3. d3 {[%clk 0:03:00.5]} 3... Nf6 {[%clk 0:02:56.2]} 4.
g3 {[%clk 0:03:00.7]} 4... g6 {[%clk 0:02:55.8]} 5. Bg2 {[%clk 0:03:00.9]} 5...
Bg7 {[%clk 0:02:56.2]} 6. O-O {[%clk 0:03:01.4]} 6... O-O {[%clk 0:02:56.9]} 7.
Nc3 {[%clk 0:03:00.7]} 7... Nc6 {[%clk 0:02:57]} 8. Be3 {[%clk 0:03:00.6]} 8...
Rb8 {[%clk 0:02:51.3]} 9. Qd2 {[%clk 0:02:59.9]} 9... Nd7 {[%clk 0:02:45.2]} 10.
Bh6 {[%clk 0:02:56.4]} 10... b5 {[%clk 0:02:43]} 11. Bxg7 {[%clk 0:02:56]} 11...
Kxg7 {[%clk 0:02:43.9]} 12. d4 {[%clk 0:02:43.7]} 12... cxd4 {[%clk 0:02:29.4]}
13. Nxd4 {[%clk 0:02:42.7]} 13... Nde5 {[%clk 0:02:01]} 14. Nxc6 {[%clk
0:01:34.8]} 14... Nxc6 {[%clk 0:01:59.6]} 15. a3 {[%clk 0:01:33]} 15... Be6
{[%clk 0:01:57.8]} 16. h4 {[%clk 0:01:23.9]} 16... Qb6 {[%clk 0:01:34.6]} 17.
Rfd1 {[%clk 0:01:08.6]} 17... Qc5 {[%clk 0:01:26.3]} 18. b4 {[%clk 0:00:55.2]}
18... Qh5 {[%clk 0:01:09.6]} 19. f4 {[%clk 0:00:50.2]} 19... a5 {[%clk
0:00:47.9]} 20. Rab1 {[%clk 0:00:45.6]} 20... axb4 {[%clk 0:00:46.6]} 21. axb4
{[%clk 0:00:46.5]} 21... Bc4 {[%clk 0:00:43.6]} 22. Qe3 {[%clk 0:00:37.4]} 22...
Rbc8 {[%clk 0:00:39.3]} 23. Bf3 {[%clk 0:00:16.5]} 23... Qh6 {[%clk 0:00:39.1]}
24. Nd5 {[%clk 0:00:16.4]} 24... f6 {[%clk 0:00:26.5]} 25. Nb6 {[%clk
0:00:13.3]} 25... Rc7 {[%clk 0:00:24.4]} 26. Nxc4 {[%clk 0:00:13.5]} 26... bxc4
{[%clk 0:00:25.3]} 27. b5 {[%clk 0:00:14]} 27... Nd8 {[%clk 0:00:25]} 28. b6
{[%clk 0:00:14.2]} 28... Rb7 {[%clk 0:00:24.4]} 29. e5 {[%clk 0:00:14.3]} 29...
Rb8 {[%clk 0:00:21.6]} 30. exd6 {[%clk 0:00:12.9]} 30... exd6 {[%clk 0:00:21.7]}
31. Rxd6 {[%clk 0:00:12]} 31... Nf7 {[%clk 0:00:21.4]} 32. Rd7 {[%clk
0:00:11.4]} 32... Rfe8 {[%clk 0:00:21.5]} 33. Qd4 {[%clk 0:00:10.9]} 33... Re6
{[%clk 0:00:12.8]} 34. Bd5 {[%clk 0:00:05.6]} 34... Rbe8 {[%clk 0:00:07.9]} 35.
Bxe6 {[%clk 0:00:05.5]} 35... Rxe6 {[%clk 0:00:08.8]} 36. b7 {[%clk 0:00:04.7]}
36... Qh5 {[%clk 0:00:08.9]} 37. b8=Q {[%clk 0:00:03.6]} 37... Qf3 {[%clk
0:00:09.3]} 38. Rxf7+ {[%clk 0:00:03.7]} 38... Kh6 {[%clk 0:00:07.5]} 39. Qb7
{[%clk 0:00:03.2]} 39... Qxg3+ {[%clk 0:00:05.9]} 40. Qg2 {[%clk 0:00:02.1]}
40... Re1+ {[%clk 0:00:05.9]} 41. Rxe1 {[%clk 0:00:01.2]} 41... Qxe1+ {[%clk
0:00:06.8]} 42. Kh2 {[%clk 0:00:01.7]} 42... Qc1 {[%clk 0:00:04.6]} 43. Rxh7+
{[%clk 0:00:01.7]} 43... Kxh7 {[%clk 0:00:04.4]} 44. Qd7+ {[%clk 0:00:01.9]}
44... Kh6 {[%clk 0:00:04.8]} 45. Qdg4 {[%clk 0:00:02.4]} 45... Qxf4+ {[%clk
0:00:05]} 46. Qxf4+ {[%clk 0:00:02.5]} 1-0

[Event "*** Titled Tuesday Blitz"]
[Site "Chess.com"]
[Date "2020.05.12"]
[Round "9"]
[White "GMaka"]
[Black "Sanyura"]
[Result "1/2-1/2"]
[WhiteElo "2367"]
[BlackElo "2490"]
[TimeControl "180+1"]
[EndTime "11:43:56 PDT"]
[Termination "Game drawn by repetition"]

1. d4 {[%clk 0:03:00.9]} 1... Nf6 {[%clk 0:02:56.1]} 2. Bf4 {[%clk 0:02:59.6]}
2... g6 {[%clk 0:02:55.9]} 3. Nc3 {[%clk 0:02:58.6]} 3... Bg7 {[%clk 0:02:55.8]}
4. e4 {[%clk 0:02:58.5]} 4... d6 {[%clk 0:02:56]} 5. Qd2 {[%clk 0:02:54.9]} 5...
O-O {[%clk 0:02:56.3]} 6. Bh6 {[%clk 0:02:50.3]} 6... Nbd7 {[%clk 0:02:56.3]} 7.
h4 {[%clk 0:02:47.1]} 7... c5 {[%clk 0:02:54.1]} 8. d5 {[%clk 0:02:42.7]} 8...
a6 {[%clk 0:02:37.2]} 9. h5 {[%clk 0:02:32.5]} 9... b5 {[%clk 0:02:21.9]} 10.
hxg6 {[%clk 0:01:54.5]} 10... fxg6 {[%clk 0:02:20.8]} 11. Bxg7 {[%clk
0:01:43.8]} 11... Kxg7 {[%clk 0:02:21.7]} 12. f3 {[%clk 0:01:44.2]} 12... b4
{[%clk 0:02:19.9]} 13. Nce2 {[%clk 0:01:35]} 13... a5 {[%clk 0:02:03.9]} 14.
Qh6+ {[%clk 0:01:32.9]} 14... Kg8 {[%clk 0:02:03.2]} 15. Nf4 {[%clk 0:01:33.8]}
15... Ne5 {[%clk 0:02:02.7]} 16. O-O-O {[%clk 0:01:05.5]} 16... c4 {[%clk
0:01:58.9]} 17. Nge2 {[%clk 0:00:55.2]} 17... c3 {[%clk 0:01:58]} 18. Nd4 {[%clk
0:00:51.3]} 18... b3 {[%clk 0:01:48.6]} 19. cxb3 {[%clk 0:00:47]} 19... cxb2+
{[%clk 0:01:48]} 20. Kb1 {[%clk 0:00:38.1]} 20... Rf7 {[%clk 0:01:43.2]} 21. Nc6
{[%clk 0:00:26.4]} 21... a4 {[%clk 0:01:44.1]} 22. Nxe5 {[%clk 0:00:25.5]} 22...
dxe5 {[%clk 0:01:41.1]} 23. Nxg6 {[%clk 0:00:22.3]} 23... Rg7 {[%clk 0:01:32.7]}
24. Nxe5 {[%clk 0:00:18.8]} 24... axb3 {[%clk 0:01:32.1]} 25. Bc4 {[%clk
0:00:08.8]} 25... bxa2+ {[%clk 0:01:30.5]} 26. Kxb2 {[%clk 0:00:09]} 26... a1=Q+
{[%clk 0:01:25.8]} 27. Rxa1 {[%clk 0:00:08.3]} 27... Qb6+ {[%clk 0:01:26.2]} 28.
Kc3 {[%clk 0:00:06.9]} 28... Rb8 {[%clk 0:01:23.4]} 29. d6+ {[%clk 0:00:06.8]}
29... Kh8 {[%clk 0:01:18.5]} 30. Nf7+ {[%clk 0:00:06.4]} 30... Rxf7 {[%clk
0:01:18.4]} 31. Bxf7 {[%clk 0:00:04.9]} 31... Qb2+ {[%clk 0:01:19]} 32. Kd3
{[%clk 0:00:03.6]} 32... Bd7 {[%clk 0:01:11.3]} 33. dxe7 {[%clk 0:00:03]} 33...
Bb5+ {[%clk 0:01:11.2]} 34. Ke3 {[%clk 0:00:03.5]} 34... Qc3+ {[%clk 0:01:09.6]}
35. Kf4 {[%clk 0:00:03.7]} 35... Qc7+ {[%clk 0:00:57.1]} 36. e5 {[%clk 0:00:03]}
36... Qxe7 {[%clk 0:00:30.2]} 37. Qxf6+ {[%clk 0:00:02.4]} 37... Qxf6+ {[%clk
0:00:30.5]} 38. exf6 {[%clk 0:00:03.3]} 38... Rf8 {[%clk 0:00:30.8]} 39. Be6
{[%clk 0:00:03.7]} 39... Rxf6+ {[%clk 0:00:30.7]} 40. Bf5 {[%clk 0:00:04.6]}
40... h6 {[%clk 0:00:29.1]} 41. g4 {[%clk 0:00:05.5]} 41... Bc6 {[%clk
0:00:28.4]} 42. Ra8+ {[%clk 0:00:06]} 42... Bxa8 {[%clk 0:00:27.5]} 43. g5
{[%clk 0:00:06.6]} 43... Rf8 {[%clk 0:00:26.6]} 44. Rxh6+ {[%clk 0:00:07.1]}
44... Kg8 {[%clk 0:00:27]} 45. Kg4 {[%clk 0:00:06.7]} 45... Bxf3+ {[%clk
0:00:26.1]} 46. Kf4 {[%clk 0:00:04.2]} 46... Bd5 {[%clk 0:00:25.5]} 47. Ke5
{[%clk 0:00:04.3]} 47... Bf7 {[%clk 0:00:22.7]} 48. Rf6 {[%clk 0:00:02.3]} 48...
Kg7 {[%clk 0:00:21.7]} 49. Kf4 {[%clk 0:00:03.2]} 49... Rb8 {[%clk 0:00:20.3]}
50. Rd6 {[%clk 0:00:03.1]} 50... Rb4+ {[%clk 0:00:20.3]} 51. Ke5 {[%clk
0:00:02.1]} 51... Rb5+ {[%clk 0:00:20.4]} 52. Kf4 {[%clk 0:00:02.6]} 52... Rb4+
{[%clk 0:00:20.9]} 53. Kg3 {[%clk 0:00:03.1]} 53... Rb5 {[%clk 0:00:20.7]} 54.
Kf4 {[%clk 0:00:02.3]} 54... Rb4+ {[%clk 0:00:21]} 1/2-1/2

[Event "*** Titled Tuesday Blitz"]
[Site "Chess.com"]
[Date "2020.05.12"]
[Round "9"]
[White "awesomevishesh"]
[Black "Playgood28"]
[Result "1/2-1/2"]
[WhiteElo "2440"]
[BlackElo "2270"]
[TimeControl "180+1"]
[EndTime "11:43:57 PDT"]
[Termination "Game drawn by repetition"]

1. d4 {[%clk 0:03:00.9]} 1... f5 {[%clk 0:02:58.2]} 2. Nf3 {[%clk 0:03:00.4]}
2... Nf6 {[%clk 0:02:55.2]} 3. g3 {[%clk 0:03:00.5]} 3... g6 {[%clk 0:02:54.5]}
4. Bg2 {[%clk 0:03:00.7]} 4... Bg7 {[%clk 0:02:54.5]} 5. O-O {[%clk 0:03:01.6]}
5... d6 {[%clk 0:02:54.5]} 6. b3 {[%clk 0:03:02.1]} 6... O-O {[%clk 0:02:54.1]}
7. Bb2 {[%clk 0:03:02.6]} 7... Ne4 {[%clk 0:02:53.3]} 8. c4 {[%clk 0:03:01.1]}
8... Nc6 {[%clk 0:02:51.4]} 9. Nbd2 {[%clk 0:02:58.5]} 9... Nxd2 {[%clk
0:02:50.5]} 10. Qxd2 {[%clk 0:02:58.1]} 10... e5 {[%clk 0:02:50.3]} 11. Rfd1
{[%clk 0:02:08.9]} 11... e4 {[%clk 0:02:48.9]} 12. Ne1 {[%clk 0:02:07.7]} 12...
a5 {[%clk 0:02:44.5]} 13. d5 {[%clk 0:02:01.6]} 13... Ne5 {[%clk 0:02:39.9]} 14.
Bd4 {[%clk 0:01:55.1]} 14... b6 {[%clk 0:02:38.8]} 15. f3 {[%clk 0:01:50.6]}
15... exf3 {[%clk 0:02:34.6]} 16. exf3 {[%clk 0:01:50.5]} 16... f4 {[%clk
0:02:19.6]} 17. gxf4 {[%clk 0:01:28.7]} 17... Nf7 {[%clk 0:02:09.7]} 18. Bxg7
{[%clk 0:01:26.1]} 18... Kxg7 {[%clk 0:02:09.1]} 19. Nc2 {[%clk 0:01:23.5]}
19... Qf6 {[%clk 0:02:02.7]} 20. Nd4 {[%clk 0:01:18.4]} 20... Nh6 {[%clk
0:02:01.6]} 21. Re1 {[%clk 0:01:16.5]} 21... Nf5 {[%clk 0:01:43.7]} 22. Nb5
{[%clk 0:00:45.8]} 22... Rf7 {[%clk 0:01:32]} 23. Rad1 {[%clk 0:00:41]} 23...
Ba6 {[%clk 0:01:30.6]} 24. Re6 {[%clk 0:00:29]} 24... Qh4 {[%clk 0:01:25.6]} 25.
Nc3 {[%clk 0:00:25.3]} 25... Raf8 {[%clk 0:01:20]} 26. Ne4 {[%clk 0:00:23.3]}
26... Bc8 {[%clk 0:01:16.7]} 27. Ng5 {[%clk 0:00:18.4]} 27... Bxe6 {[%clk
0:01:15.9]} 28. Nxe6+ {[%clk 0:00:08.7]} 28... Kg8 {[%clk 0:01:14.3]} 29. Nxf8
{[%clk 0:00:09.2]} 29... Kxf8 {[%clk 0:01:08.9]} 30. Re1 {[%clk 0:00:09.7]}
30... Re7 {[%clk 0:01:08.3]} 31. Re4 {[%clk 0:00:08.7]} 31... Qf6 {[%clk
0:01:03]} 32. Kf2 {[%clk 0:00:07.6]} 32... Ng7 {[%clk 0:00:51.8]} 33. Bh3 {[%clk
0:00:06.5]} 33... Nh5 {[%clk 0:00:49.8]} 34. Rxe7 {[%clk 0:00:05.7]} 34... Kxe7
{[%clk 0:00:45.2]} 35. Qe3+ {[%clk 0:00:05.3]} 35... Kf8 {[%clk 0:00:44.9]} 36.
Bg4 {[%clk 0:00:03.9]} 36... Nxf4 {[%clk 0:00:43.9]} 37. Kg3 {[%clk 0:00:04.2]}
37... g5 {[%clk 0:00:38]} 38. h4 {[%clk 0:00:03.9]} 38... h6 {[%clk 0:00:31.8]}
39. hxg5 {[%clk 0:00:03.8]} 39... hxg5 {[%clk 0:00:31.2]} 40. Qe4 {[%clk
0:00:04]} 40... Qh6 {[%clk 0:00:29.8]} 41. Qf5+ {[%clk 0:00:03.8]} 41... Kg7
{[%clk 0:00:21.6]} 42. Qd7+ {[%clk 0:00:04]} 42... Kh8 {[%clk 0:00:21.5]} 43.
Qe8+ {[%clk 0:00:04.1]} 43... Kg7 {[%clk 0:00:19.5]} 44. Qe7+ {[%clk 0:00:04.1]}
44... Kh8 {[%clk 0:00:19.2]} 45. Qd8+ {[%clk 0:00:04]} 45... Kg7 {[%clk
0:00:18.7]} 46. Qxc7+ {[%clk 0:00:04.3]} 46... Kh8 {[%clk 0:00:18.7]} 47. Qc8+
{[%clk 0:00:04.4]} 47... Kg7 {[%clk 0:00:18.3]} 48. Qd7+ {[%clk 0:00:04.1]}
48... Kh8 {[%clk 0:00:18.1]} 49. Qe8+ {[%clk 0:00:04]} 49... Kg7 {[%clk
0:00:17.9]} 50. Qe7+ {[%clk 0:00:03.7]} 50... Kh8 {[%clk 0:00:17.5]} 51. Qe8+
{[%clk 0:00:02.2]} 51... Kg7 {[%clk 0:00:17.2]} 52. Qe7+ {[%clk 0:00:01.9]}
52... Kh8 {[%clk 0:00:17.1]} 53. Qe8+ {[%clk 0:00:01.9]} 1/2-1/2

[Event "*** Titled Tuesday Blitz"]
[Site "Chess.com"]
[Date "2020.05.12"]
[Round "9"]
[White "Sesleria"]
[Black "tteshan"]
[Result "0-1"]
[WhiteElo "1981"]
[BlackElo "2191"]
[TimeControl "180+1"]
[EndTime "11:43:57 PDT"]
[Termination "tteshan won on time"]

1. d4 {[%clk 0:02:59.1]} 1... d5 {[%clk 0:02:58.3]} 2. c4 {[%clk 0:02:58.9]}
2... dxc4 {[%clk 0:02:59.2]} 3. Nf3 {[%clk 0:02:58.5]} 3... Nf6 {[%clk
0:02:59.8]} 4. e3 {[%clk 0:02:58.4]} 4... Bg4 {[%clk 0:03:00.3]} 5. Bxc4 {[%clk
0:02:57.7]} 5... e6 {[%clk 0:03:00.8]} 6. Qb3 {[%clk 0:02:49.4]} 6... Bxf3
{[%clk 0:03:00.3]} 7. gxf3 {[%clk 0:02:48.6]} 7... Nbd7 {[%clk 0:03:00.7]} 8.
O-O {[%clk 0:02:43.2]} 8... Be7 {[%clk 0:02:59.1]} 9. Nc3 {[%clk 0:02:42.3]}
9... Nb6 {[%clk 0:02:58.5]} 10. Be2 {[%clk 0:02:36.8]} 10... O-O {[%clk
0:02:58.5]} 11. Rd1 {[%clk 0:02:26.5]} 11... c6 {[%clk 0:02:47]} 12. f4 {[%clk
0:02:25.6]} 12... Qc7 {[%clk 0:02:45.2]} 13. Bd2 {[%clk 0:02:18.4]} 13... Rac8
{[%clk 0:02:44.5]} 14. Rac1 {[%clk 0:02:17.8]} 14... Qb8 {[%clk 0:02:44.7]} 15.
Bf3 {[%clk 0:02:15.4]} 15... Rfd8 {[%clk 0:02:42.4]} 16. Be1 {[%clk 0:02:06.7]}
16... Nbd5 {[%clk 0:02:41.5]} 17. Ne2 {[%clk 0:01:44.9]} 17... h6 {[%clk
0:02:35.5]} 18. Ba5 {[%clk 0:01:34.4]} 18... b6 {[%clk 0:02:30.4]} 19. Bd2
{[%clk 0:01:32.7]} 19... Ne8 {[%clk 0:02:10.6]} 20. Ng3 {[%clk 0:01:29.5]} 20...
c5 {[%clk 0:02:04.8]} 21. dxc5 {[%clk 0:01:19.1]} 21... Bxc5 {[%clk 0:02:04.5]}
22. Ne4 {[%clk 0:01:09.4]} 22... Be7 {[%clk 0:02:01.3]} 23. Be1 {[%clk
0:01:00.9]} 23... Rxc1 {[%clk 0:01:49.4]} 24. Rxc1 {[%clk 0:01:00.4]} 24... Nd6
{[%clk 0:01:49.7]} 25. Qc2 {[%clk 0:00:43.3]} 25... Bf6 {[%clk 0:01:41.6]} 26.
Nxf6+ {[%clk 0:00:41.4]} 26... Nxf6 {[%clk 0:01:39.6]} 27. Qc7 {[%clk
0:00:39.6]} 27... Qxc7 {[%clk 0:01:35.7]} 28. Rxc7 {[%clk 0:00:39.3]} 28... Rd7
{[%clk 0:01:33.1]} 29. Rxd7 {[%clk 0:00:33.9]} 29... Nxd7 {[%clk 0:01:34]} 30.
Bb4 {[%clk 0:00:33.2]} 30... Nc4 {[%clk 0:01:30.4]} 31. b3 {[%clk 0:00:32.6]}
31... a5 {[%clk 0:01:14.9]} 32. Bc3 {[%clk 0:00:21.7]} 32... Nd6 {[%clk
0:01:12.9]} 33. Bd4 {[%clk 0:00:20.2]} 33... Nf5 {[%clk 0:01:04.3]} 34. Bc3
{[%clk 0:00:17.5]} 34... Kf8 {[%clk 0:01:03.3]} 35. Bc6 {[%clk 0:00:16]} 35...
Nc5 {[%clk 0:00:55]} 36. Kf1 {[%clk 0:00:10.7]} 36... f6 {[%clk 0:00:50.4]} 37.
Ke2 {[%clk 0:00:10.5]} 37... Ke7 {[%clk 0:00:50.6]} 38. e4 {[%clk 0:00:10.5]}
38... Nd6 {[%clk 0:00:49.6]} 39. f3 {[%clk 0:00:09.8]} 39... g5 {[%clk
0:00:42.3]} 40. fxg5 {[%clk 0:00:08.5]} 40... hxg5 {[%clk 0:00:43.2]} 41. h3
{[%clk 0:00:07.9]} 41... Nf7 {[%clk 0:00:43.2]} 42. Ke3 {[%clk 0:00:06.6]} 42...
Nd8 {[%clk 0:00:43.4]} 43. Bb5 {[%clk 0:00:06.1]} 43... Ndb7 {[%clk 0:00:43.5]}
44. Bd4 {[%clk 0:00:04.4]} 44... Nd6 {[%clk 0:00:40.9]} 45. Be2 {[%clk
0:00:03.5]} 45... Nd7 {[%clk 0:00:40]} 46. a4 {[%clk 0:00:02.2]} 46... e5 {[%clk
0:00:39.3]} 47. Bc3 {[%clk 0:00:01.5]} 47... Nc5 {[%clk 0:00:39.7]} 48. Bd1
{[%clk 0:00:01.6]} 48... Nf7 {[%clk 0:00:38.3]} 49. Kf2 {[%clk 0:00:01.5]} 49...
Nd8 {[%clk 0:00:38.2]} 50. Kg3 {[%clk 0:00:02]} 50... Nc6 {[%clk 0:00:38.6]} 51.
Kg4 {[%clk 0:00:02.2]} 51... Ke6 {[%clk 0:00:39]} 52. h4 {[%clk 0:00:02.3]}
52... gxh4 {[%clk 0:00:38]} 53. Kxh4 {[%clk 0:00:03.2]} 53... Nd4 {[%clk
0:00:38.3]} 54. Bxd4 {[%clk 0:00:01.9]} 54... exd4 {[%clk 0:00:39.2]} 55. Kg3
{[%clk 0:00:02.1]} 55... Ke5 {[%clk 0:00:39.4]} 56. Kf2 {[%clk 0:00:02.6]} 56...
f5 {[%clk 0:00:37.6]} 57. exf5 {[%clk 0:00:01.9]} 57... Kxf5 {[%clk 0:00:38.5]}
58. Ke2 {[%clk 0:00:02.4]} 58... Kf4 {[%clk 0:00:38.4]} 59. Bc2 {[%clk
0:00:02.4]} 59... d3+ {[%clk 0:00:36.3]} 60. Bxd3 {[%clk 0:00:02.8]} 60... Nxb3
{[%clk 0:00:36.7]} 61. Bb5 {[%clk 0:00:02.8]} 61... Nd4+ {[%clk 0:00:36.2]} 62.
Kd3 {[%clk 0:00:03]} 62... Nxb5 {[%clk 0:00:36.3]} 63. axb5 {[%clk 0:00:02.4]}
63... Kxf3 {[%clk 0:00:36.8]} 0-1